bitfinex/quotes_BTCUSD_20250303
["timestamp","ask_amount","ask_price","bid_price","bid_amount"]
[1740995017879,0.162667,92213.0,92207.0,0.162676]
[1740995018078,0.162665,92214.0,92203.0,0.216912]
[1740995018402,0.162663,92215.0,92208.0,0.162674]
[1740995018579,0.05527886,92299.0,92198.0,0.216924]
[1740995018784,0.05527886,92299.0,92221.0,0.162651]
[1740995018785,0.01080642,92228.0,92221.0,0.162651]
[1740995018983,0.01080642,92228.0,92200.0,0.23145885]
[1740995019185,0.002,92217.0,92214.0,0.216885]
[1740995019397,0.002,92217.0,92216.0,0.162661]
[1740995019575,0.01270411,92228.0,92214.0,0.216885]
[1740995019576,0.00189769,92224.0,92214.0,0.216885]
[1740995019784,0.162652,92222.0,92216.0,0.162661]
[1740995020000,0.162649,92223.0,92217.0,0.01043579]
[1740995020221,0.162649,92223.0,92217.0,0.135658]
[1740995020398,0.22766242,92228.0,92220.0,0.162652]
[1740995020399,0.01080642,92228.0,92220.0,0.162652]
[1740995020652,0.162649,92223.0,92221.0,0.0104302]
[1740995020829,0.0003406,92231.0,92201.0,0.0816]
[1740995021182,0.001,92222.0,92221.0,0.17719285]
[1740995021399,0.0003406,92231.0,92221.0,0.00127579]
[1740995021547,0.0003406,92231.0,92226.0,0.17718385]
[1740995021749,0.0003406,92231.0,92226.0,0.17645955]
[1740995022116,0.0003406,92231.0,92226.0,0.17445955]
[1740995022875,0.0013408,92227.0,92226.0,0.18059336]
[1740995023839,0.0023408,92227.0,92226.0,0.18059336]
[1740995024948,0.0013408,92227.0,92226.0,0.18059336]
[1740995025170,0.0023408,92227.0,92226.0,0.18259336]
[1740995027593,0.0023408,92227.0,92226.0,0.18131766]
[1740995028558,0.0023408,92227.0,92226.0,0.16677681]
[1740995028677,0.0023408,92227.0,92226.0,0.16805254]
[1740995031512,0.0023408,92227.0,92226.0,0.18259339]
[1740995031717,0.0023408,92227.0,92226.0,0.25799339]
[1740995031910,0.0023408,92227.0,92226.0,0.25671766]
[1740995032532,0.0023408,92227.0,92226.0,0.18131766]
[1740995033148,0.0023408,92227.0,92226.0,0.16677681]
[1740995033358,0.0023408,92227.0,92226.0,0.17077681]
[1740995034242,0.0023408,92227.0,92226.0,0.18531766]
[1740995035695,0.0023408,92227.0,92226.0,0.18659313]
[1740995039274,6e-07,92231.0,92230.0,0.162636]
[1740995039482,0.0003406,92245.0,92244.0,0.47715285]
[1740995039670,0.0003406,92245.0,92244.0,0.83182747]
[1740995039671,6e-07,92245.0,92244.0,0.83182747]
[1740995040214,1e-06,92256.0,92255.0,0.47713285]
[1740995040645,1e-06,92256.0,92255.0,0.47613285]
[1740995040805,1e-06,92256.0,92255.0,0.4860598]
[1740995041401,0.001001,92256.0,92255.0,0.4930598]
[1740995041600,0.001001,92256.0,92255.0,0.49319361]
[1740995042469,0.00841338,92281.0,92255.0,0.49319361]
[1740995042470,8e-07,92259.0,92257.0,0.3]
[1740995042610,8e-07,92259.0,92258.0,0.4784017]
[1740995042817,8e-07,92259.0,92258.0,0.47712785]
[1740995043898,8e-07,92259.0,92258.0,0.48312785]
[1740995044107,4e-07,92267.0,92266.0,0.47711385]
[1740995044359,4e-07,92267.0,92266.0,0.75168847]
[1740995046480,4e-07,92267.0,92266.0,0.75868847]
[1740995046891,4e-07,92267.0,92266.0,0.75468847]
[1740995047432,4e-07,92267.0,92266.0,0.76068847]
[1740995047655,4e-07,92267.0,92266.0,0.76768847]
[1740995048025,4e-07,92267.0,92266.0,0.016]
[1740995048214,0.1625714,92267.0,92266.0,0.016]
[1740995048762,0.17060487,92267.0,92266.0,0.016]
[1740995048995,0.00803387,92267.0,92266.0,0.009]
[1740995049159,0.00803387,92267.0,92260.0,0.162582]
[1740995049364,0.17060487,92267.0,92266.0,0.003]
[1740995049882,0.216768,92265.0,92255.0,0.16272581]
[1740995050084,0.22479587,92267.0,92266.0,0.003]
[1740995050623,0.16259,92257.0,92255.0,0.00013381]
[1740995050947,0.162591,92256.0,92255.0,0.00013381]
[1740995051158,0.291591,92256.0,92255.0,0.00013381]
[1740995051328,0.129,92256.0,92255.0,0.16272581]
[1740995051509,0.129,92256.0,92255.0,0.00013381]
[1740995051711,0.291591,92256.0,92255.0,0.00013381]
[1740995052143,0.591591,92256.0,92255.0,0.00013381]
[1740995052318,0.6941063,92256.0,92255.0,0.00013381]
[1740995052521,0.591591,92256.0,92255.0,0.00013381]
[1740995052723,0.0469,92256.0,92255.0,0.16272581]
[1740995052939,0.08323387,92267.0,92266.0,0.162573]
[1740995053137,4e-07,92267.0,92266.0,0.162573]
[1740995053339,4e-07,92267.0,92266.0,0.16384722]
[1740995054167,4e-07,92267.0,92266.0,0.162573]
[1740995055339,4e-07,92267.0,92266.0,0.13757299]
[1740995055555,4e-07,92267.0,92266.0,0.001]
[1740995057152,4e-07,92267.0,92266.0,0.163573]
[1740995057326,4e-07,92267.0,92266.0,0.16484762]
[1740995060237,4e-07,92267.0,92266.0,0.13784762]
[1740995062330,4e-07,92267.0,92266.0,0.15238847]
[1740995062538,4e-07,92267.0,92266.0,0.45238847]
[1740995062712,4e-07,92267.0,92266.0,0.45111385]
[1740995062913,4e-07,92267.0,92266.0,0.80208847]
[1740995063680,4e-07,92267.0,92266.0,0.80908847]
[1740995064250,4e-07,92267.0,92266.0,0.80208847]
[1740995064476,4e-07,92267.0,92266.0,0.80908847]
[1740995065253,4e-07,92267.0,92266.0,0.80925877]
[1740995065452,4e-07,92267.0,92266.0,0.81625877]
[1740995065652,4e-07,92267.0,92266.0,0.80925877]
[1740995066054,4e-07,92267.0,92266.0,0.81625877]
[1740995067389,4e-07,92267.0,92266.0,0.72531792]
[1740995067596,4e-07,92267.0,92266.0,0.42531792]
[1740995067795,4e-07,92267.0,92266.0,0.0141703]
[1740995068523,4e-07,92267.0,92266.0,0.0071703]
[1740995068724,4e-07,92267.0,92266.0,0.0141703]
[1740995068862,4e-07,92267.0,92266.0,0.0071703]
[1740995069303,4e-07,92267.0,92266.0,0.0111703]
[1740995069715,4e-07,92267.0,92266.0,0.1667433]
[1740995070122,4e-07,92267.0,92266.0,0.1737433]
[1740995070967,4e-07,92267.0,92266.0,0.0111703]
[1740995071832,0.1625714,92267.0,92266.0,0.0111703]
[1740995073501,4e-07,92267.0,92266.0,0.0111703]
[1740995073704,4e-07,92267.0,92266.0,0.1737433]
[1740995078784,4e-07,92267.0,92266.0,0.0111703]
[1740995078986,0.1625714,92267.0,92266.0,0.0111703]
[1740995079185,0.2423714,92267.0,92266.0,0.0111703]
[1740995079455,0.2919714,92267.0,92266.0,0.0111703]
[1740995080006,0.2919714,92267.0,92266.0,0.0001703]
[1740995081425,4e-07,92267.0,92266.0,0.1627433]
[1740995081636,4e-07,92267.0,92266.0,0.17190127]
[1740995082022,4e-07,92267.0,92266.0,0.17290127]
[1740995082201,4e-07,92267.0,92266.0,0.18394181]
[1740995082406,4e-07,92267.0,92266.0,0.17190127]
[1740995082980,4e-07,92267.0,92266.0,0.17490127]
[1740995083175,4e-07,92267.0,92266.0,0.17590127]
[1740995086022,4e-07,92267.0,92266.0,0.01332827]
[1740995086555,0.1625714,92267.0,92266.0,0.01332827]
[1740995086752,0.16446817,92267.0,92266.0,0.01332827]
[1740995086953,0.1625714,92267.0,92266.0,0.0041703]
[1740995087176,4e-07,92267.0,92266.0,0.0041703]
[1740995087578,4e-07,92267.0,92266.0,0.01332576]
[1740995087579,0.4625714,92267.0,92266.0,0.01332576]
[1740995087922,0.4625714,92267.0,92266.0,0.0001703]
[1740995087923,0.9106714,92267.0,92266.0,0.0001703]
[1740995088241,0.9106714,92267.0,92266.0,0.0031703]
[1740995088714,0.9106714,92267.0,92266.0,0.0001703]
[1740995088919,0.239891,92256.0,92255.0,0.00013381]
[1740995089117,0.58998836,92256.0,92255.0,0.00013381]
[1740995089343,0.588091,92256.0,92255.0,0.00013381]
[1740995090453,0.3,92252.0,92221.0,0.21687]
[1740995090656,0.162617,92241.0,92234.0,0.162628]
[1740995090986,0.00189743,92251.0,92227.0,0.01078336]
[1740995091173,0.162623,92238.0,92235.0,0.01076474]
[1740995091374,0.216811,92246.0,92226.0,0.00030375]
[1740995091577,0.01101637,92240.0,92226.0,0.00030375]
[1740995091785,0.216839,92234.0,92226.0,0.00030375]
[1740995091965,0.00189744,92233.0,92226.0,0.00030375]
[1740995092145,0.162636,92231.0,92226.0,0.00030375]
[1740995092356,0.162642,92227.0,92226.0,0.00030375]
[1740995092545,0.01104143,92240.0,92226.0,0.00030375]
[1740995092749,0.162642,92227.0,92226.0,0.00030375]
[1740995093112,0.00189746,92237.0,92226.0,0.00030375]
[1740995093242,0.162633,92232.0,92226.0,0.00330375]
[1740995093443,0.162635,92231.0,92226.0,0.00030375]
[1740995093657,0.21683,92238.0,92226.0,0.00030375]
[1740995093860,0.001,92231.0,92226.0,0.00630375]
[1740995094063,0.162642,92227.0,92226.0,0.00630375]
[1740995094343,0.162642,92227.0,92226.0,0.00930375]
[1740995095035,0.162642,92227.0,92226.0,0.00330375]
[1740995095353,0.162642,92227.0,92226.0,0.00630375]
[1740995095561,0.162642,92227.0,92226.0,0.00330375]
[1740995096109,0.163642,92227.0,92226.0,0.01030375]
[1740995096588,0.162642,92227.0,92226.0,0.00530375]
[1740995097007,0.162642,92227.0,92226.0,0.01030375]
[1740995097984,0.16453958,92227.0,92226.0,0.01030375]
[1740995100318,0.0486,92228.0,92226.0,0.01030375]
[1740995100319,0.21313769,92228.0,92226.0,0.01030375]
[1740995100643,0.162642,92227.0,92226.0,0.01030375]
[1740995101292,0.39400897,92227.0,92204.0,0.0001704]
[1740995101439,0.162679,92206.0,92205.0,0.0363442]
[1740995101620,0.162679,92206.0,92205.0,0.0472176]
[1740995101979,0.237779,92206.0,92205.0,0.0363442]
[1740995102825,0.54863896,92206.0,92205.0,0.0363442]
[1740995103166,0.59803896,92206.0,92205.0,0.0363442]
[1740995103382,0.44552621,92206.0,92205.0,0.0363442]
[1740995103596,0.01016625,92206.0,92205.0,0.0363442]
[1740995103798,0.002,92206.0,92205.0,0.04451542]
[1740995104204,0.002,92206.0,92205.0,0.0443264]
[1740995104633,0.003,92206.0,92205.0,0.0443264]
[1740995104996,0.162671,92211.0,92205.0,0.0443264]
[1740995105217,0.006,92206.0,92205.0,0.0473264]
[1740995105421,0.006,92206.0,92205.0,0.2100064]
[1740995105639,0.006,92206.0,92205.0,0.0463264]
[1740995105640,0.162679,92206.0,92205.0,0.0463264]
[1740995105844,0.162679,92206.0,92205.0,0.0443264]
[1740995105995,0.162679,92206.0,92205.0,0.03615518]
[1740995106201,0.162679,92206.0,92205.0,0.03715518]
[1740995106397,0.538379,92206.0,92205.0,0.03715518]
[1740995106881,0.64729544,92206.0,92205.0,0.004513]
[1740995107064,0.162735,92174.0,92173.0,0.0001703]
[1740995107302,0.162735,92174.0,92173.0,0.00057119]
[1740995107503,0.16463378,92174.0,92173.0,0.00057119]
[1740995108269,0.162735,92174.0,92173.0,0.00057119]
[1740995108961,0.462735,92174.0,92173.0,0.00057119]
[1740995109372,0.47110212,92174.0,92173.0,0.00057119]
[1740995109592,0.47110212,92174.0,92173.0,0.00157119]
[1740995109798,0.47110212,92174.0,92173.0,0.00557119]
[1740995110129,0.00836712,92174.0,92162.0,0.0001701]
[1740995110302,0.00189891,92173.0,92165.0,0.00985026]
[1740995110914,0.00329987,92174.0,92173.0,0.0001704]
[1740995111163,0.30329979,92174.0,92173.0,0.0001704]
[1740995111372,0.30140106,92174.0,92173.0,0.00841495]
[1740995111530,0.30140106,92174.0,92173.0,0.0001704]
[1740995111917,0.30040106,92174.0,92173.0,0.0001704]
[1740995113799,0.16313606,92174.0,92173.0,0.0001704]
[1740995113953,0.24623522,92174.0,92173.0,0.0001704]
[1740995114558,0.25123522,92174.0,92173.0,0.0001704]
[1740995114779,0.25523522,92174.0,92173.0,0.0001704]
[1740995114999,0.508949,92166.0,92165.0,1e-08]
[1740995115198,1.91950953,92166.0,92165.0,1e-08]
[1740995115375,0.3,92152.0,92122.0,0.20497199]
[1740995115712,0.00189945,92151.0,92123.0,0.00709566]
[1740995115886,0.162807,92134.0,92126.0,0.162819]
[1740995116080,0.162791,92143.0,92135.0,0.162804]
[1740995116301,0.00189945,92142.0,92136.0,0.00708106]
[1740995116708,0.3,92150.0,92119.0,0.2172793]
[1740995116863,0.0018995,92149.0,92137.0,0.00707966]
[1740995117067,0.3,92148.0,92137.0,0.00011996]
[1740995117456,0.00819997,92150.0,92149.0,0.162779]
[1740995117606,0.00819997,92150.0,92138.0,0.00708046]
[1740995117607,0.162759,92161.0,92153.0,0.162772]
[1740995117812,0.00189902,92163.0,92149.0,0.00706507]
[1740995117989,0.00189895,92173.0,92154.0,0.00705747]
[1740995118376,0.00826041,92180.0,92179.0,0.162726]
[1740995118595,0.0461,92194.0,92183.0,0.162718]
[1740995118596,0.00189851,92193.0,92183.0,0.162718]
[1740995118805,0.00189851,92194.0,92179.0,0.00702086]
[1740995118980,1.21086053,92208.0,92156.0,0.27457462]
[1740995118981,0.01075439,92193.0,92156.0,0.27457462]
[1740995119157,0.00189857,92192.0,92158.0,0.1295]
[1740995119324,0.162708,92190.0,92159.0,0.00127803]
[1740995119520,0.00189838,92189.0,92160.0,0.217013]
[1740995119726,0.0004013,92190.0,92185.0,0.162715]
[1740995119926,0.0004013,92190.0,92161.0,0.00127803]
[1740995120144,0.1631083,92190.0,92184.0,0.162717]
[1740995120342,0.0004013,92190.0,92178.0,0.216969]
[1740995120548,0.0004013,92190.0,92185.0,0.162716]
[1740995120755,0.0004013,92190.0,92160.0,0.217013]
[1740995120958,0.00229968,92190.0,92160.0,0.27357462]
[1740995121730,0.21924468,92190.0,92160.0,0.27357462]
[1740995121931,0.162732,92176.0,92169.0,0.162744]
[1740995122093,0.162739,92173.0,92165.0,0.16275]
[1740995122296,0.00189872,92172.0,92160.0,0.27357462]
[1740995122482,0.3,92187.0,92160.0,0.27357462]
[1740995122678,0.162756,92163.0,92160.0,0.27357462]
[1740995122881,0.162716,92185.0,92184.0,0.002]
[1740995123198,0.679671,92185.0,92184.0,0.002]
[1740995123528,0.3,92184.0,92144.0,0.0110936]
[1740995123733,0.162758,92161.0,92160.0,0.002]
[1740995123929,0.16465696,92161.0,92160.0,0.002]
[1740995124285,0.00189896,92161.0,92160.0,0.002]
[1740995124513,0.001,92163.0,92162.0,0.162756]
[1740995125025,0.001,92163.0,92160.0,0.219012]
[1740995125327,0.162758,92161.0,92160.0,0.002]
[1740995125528,0.07919903,92161.0,92122.0,0.0001706]
[1740995125729,0.07919903,92161.0,92141.0,0.162792]
[1740995125937,0.24295703,92161.0,92160.0,0.001]
[1740995126096,0.162791,92143.0,92124.0,0.217098]
[1740995126369,0.00189921,92159.0,92124.0,0.217098]
[1740995126550,0.217059,92141.0,92123.0,0.27357462]
[1740995126750,0.162793,92142.0,92135.0,0.162803]
[1740995127032,0.217044,92148.0,92133.0,0.217076]
[1740995127229,0.162795,92141.0,92134.0,0.162806]
[1740995127432,0.217034,92152.0,92129.0,0.217085]
[1740995127633,0.08823872,92161.0,92122.0,0.0001706]
[1740995127634,0.02360279,92151.0,92122.0,0.0001706]
[1740995127834,0.162814,92130.0,92123.0,0.162825]
[1740995127989,0.162804,92135.0,92122.0,0.0001706]
[1740995128202,0.00189954,92134.0,92122.0,0.0001706]
[1740995128405,0.00189954,92134.0,92123.0,0.217101]
[1740995128959,0.00189954,92140.0,92122.0,0.0001706]
[1740995129161,0.00189954,92140.0,92123.0,0.00011996]
[1740995129359,0.00189954,92147.0,92133.0,0.162807]
[1740995129490,0.217052,92144.0,92133.0,0.162807]
[1740995129714,0.162792,92142.0,92136.0,0.162802]
[1740995129922,0.00189948,92143.0,92123.0,0.21721796]
[1740995130128,0.16468948,92143.0,92124.0,0.217098]
[1740995130322,0.16468948,92143.0,92137.0,0.1628]
[1740995130520,0.00189948,92143.0,92138.0,0.162798]
[1740995130792,0.00189948,92143.0,92123.0,0.00011996]
[1740995130987,0.05,92178.0,92123.0,0.00011996]
[1740995130988,0.08810863,92161.0,92124.0,0.217098]
[1740995131204,0.08810863,92161.0,92123.0,0.00140001]
[1740995131205,0.08810863,92161.0,92123.0,0.00011996]
[1740995131378,0.30189934,92159.0,92123.0,0.00139991]
[1740995131620,0.08810863,92161.0,92124.0,0.01454085]
[1740995131843,0.51891517,92159.0,92147.0,0.162782]
[1740995132050,0.51891517,92159.0,92123.0,0.00011996]
[1740995132051,0.21703,92153.0,92124.0,0.01454085]
[1740995132197,0.162776,92151.0,92125.0,0.00127962]
[1740995132400,0.00189917,92150.0,92125.0,0.00127962]
[1740995132603,0.162788,92145.0,92125.0,0.00127962]
[1740995132818,0.301,92159.0,92123.0,0.00011996]
[1740995132819,0.00189939,92144.0,92123.0,0.00011996]
[1740995133040,0.3,92157.0,92137.0,0.1628]
[1740995133244,0.00189941,92156.0,92123.0,0.00139984]
[1740995133447,0.217025,92155.0,92123.0,0.00139984]
[1740995133652,0.00189939,92154.0,92123.0,0.00139984]
[1740995134113,0.00189939,92154.0,92152.0,0.162772]
[1740995134340,0.00189912,92159.0,92149.0,0.162778]
[1740995134620,0.001,92155.0,92154.0,0.162771]
[1740995134810,0.001,92155.0,92152.0,0.162773]
[1740995135017,0.001,92155.0,92126.0,0.217093]
[1740995135248,0.001,92155.0,92123.0,0.0001705]
[1740995135249,0.0018992,92154.0,92123.0,0.0001705]
[1740995135397,0.217053,92144.0,92124.0,0.217098]
[1740995135608,0.00189933,92143.0,92123.0,0.0001705]
[1740995135975,0.162809,92133.0,92124.0,0.217098]
[1740995136194,0.16470852,92133.0,92124.0,0.217098]
[1740995136550,0.0808,92144.0,92123.0,0.0001705]
[1740995136667,0.162801,92137.0,92130.0,0.162812]
[1740995136876,0.21895252,92143.0,92123.0,0.0011705]
[1740995136877,0.0018995,92136.0,92123.0,0.0001705]
[1740995137072,0.162804,92136.0,92128.0,0.162816]
[1740995137335,0.001,92133.0,92124.0,0.001]
[1740995137503,0.00189953,92135.0,92123.0,0.0001705]
[1740995137504,0.162811,92132.0,92125.0,0.162822]
[1740995137708,0.00189954,92131.0,92124.0,0.162824]
[1740995137919,0.00189954,92131.0,92130.0,0.001]
[1740995138090,0.16471054,92131.0,92130.0,0.001]
[1740995138290,0.00189954,92131.0,92130.0,0.001]
[1740995138495,0.16471054,92131.0,92130.0,0.001]
[1740995138702,0.162811,92131.0,92130.0,0.001]
[1740995139121,0.162821,92126.0,92123.0,0.0001705]
[1740995139290,0.16472166,92125.0,92124.0,0.001]
[1740995139732,0.162824,92124.0,92123.0,0.0001705]
[1740995140247,0.16472371,92124.0,92123.0,0.0001705]
[1740995140383,0.16472371,92124.0,92123.0,0.00029046]
[1740995141699,0.46472371,92124.0,92123.0,0.00029046]
[1740995141914,0.462824,92124.0,92123.0,0.00029046]
[1740995142119,0.05331319,92135.0,92123.0,0.00029046]
[1740995142309,0.00189985,92134.0,92123.0,0.00129046]
[1740995142487,0.162822,92125.0,92123.0,0.00029046]
[1740995142692,0.00189985,92134.0,92123.0,0.00029046]
[1740995142889,0.00801319,92135.0,92123.0,0.00029046]
[1740995143069,0.01020191,92142.0,92141.0,0.162793]
[1740995143271,0.005,92135.0,92134.0,0.162806]
[1740995143673,0.003,92135.0,92134.0,0.162806]
[1740995144073,0.003,92135.0,92134.0,0.161806]
[1740995144275,0.003,92135.0,92134.0,0.16308606]
[1740995144828,0.00821323,92149.0,92148.0,0.162781]
[1740995145067,0.00224016,92156.0,92123.0,0.01143468]
[1740995145261,0.00224016,92156.0,92126.0,0.32564]
[1740995145467,0.000341,92156.0,92155.0,0.162769]
[1740995146536,0.001341,92156.0,92155.0,0.162769]
[1740995146749,0.00174206,92156.0,92155.0,0.162769]
[1740995146970,0.00174206,92156.0,92155.0,0.1737255]
[1740995147112,0.00274206,92156.0,92155.0,0.19026635]
[1740995147519,0.00174206,92156.0,92155.0,0.18826635]
[1740995147918,0.00074206,92156.0,92155.0,0.76184097]
[1740995148184,0.09602971,92188.0,92155.0,0.76184097]
[1740995148185,0.09602971,92188.0,92155.0,0.76284097]
[1740995148386,0.09602971,92188.0,92187.0,0.162712]
[1740995148935,0.09602971,92188.0,92187.0,0.461712]
[1740995149128,0.09602971,92188.0,92187.0,0.47625285]
[1740995149503,0.10002971,92188.0,92187.0,0.47625285]
[1740995149726,0.09802971,92188.0,92187.0,0.47637281]
[1740995149923,0.002,92188.0,92187.0,0.47637281]
[1740995150085,0.002,92188.0,92187.0,0.47737281]
[1740995150279,0.002,92188.0,92187.0,0.47637281]
[1740995150725,0.003,92188.0,92187.0,0.47937281]
[1740995150906,0.001,92188.0,92187.0,0.47937281]
[1740995151108,0.002,92188.0,92187.0,0.48637281]
[1740995151310,0.002,92188.0,92187.0,0.17183196]
[1740995151533,0.002,92188.0,92187.0,0.01011996]
[1740995151774,0.001,92188.0,92187.0,0.00311996]
[1740995151975,0.001,92188.0,92187.0,0.00711996]
[1740995152158,0.001,92188.0,92187.0,0.16983096]
[1740995152358,0.002,92188.0,92187.0,0.17283096]
[1740995152577,0.002,92188.0,92187.0,0.17410869]
[1740995152781,0.002,92188.0,92187.0,0.17283096]
[1740995152980,0.002,92188.0,92187.0,0.17410808]
[1740995153180,0.002,92188.0,92187.0,0.48864893]
[1740995153342,0.002,92188.0,92187.0,0.56267181]
[1740995154245,0.001,92188.0,92187.0,0.55567181]
[1740995154662,0.001,92188.0,92187.0,0.56267181]
[1740995155069,2e-07,92192.0,92191.0,0.47724585]
[1740995155302,2e-07,92192.0,92191.0,0.57194568]
[1740995155667,2e-07,92192.0,92191.0,0.62194568]
[1740995155875,2e-07,92192.0,92191.0,1.4393203]
[1740995156071,0.00201,92226.0,92209.0,0.462673]
[1740995156274,1e-06,92210.0,92209.0,0.83318847]
[1740995156511,1e-06,92210.0,92209.0,1.4259883]
[1740995157454,1e-06,92210.0,92209.0,1.37598847]
[1740995157871,0.000342,92210.0,92209.0,1.29358847]
[1740995158085,0.000342,92210.0,92209.0,1.13191547]
[1740995158282,0.001342,92210.0,92209.0,1.13891547]
[1740995158649,0.001342,92210.0,92209.0,1.13191547]
[1740995158851,0.000342,92210.0,92209.0,1.13191547]
[1740995159059,0.000342,92210.0,92209.0,1.14591547]
[1740995159060,0.002342,92210.0,92209.0,1.14591547]
[1740995159443,0.002342,92210.0,92209.0,1.13891547]
[1740995159646,0.003342,92210.0,92209.0,1.14591547]
[1740995159843,0.001342,92210.0,92209.0,1.13891547]
[1740995160048,0.001342,92210.0,92209.0,1.1889153]
[1740995160327,0.001342,92210.0,92209.0,1.14591547]
[1740995160328,0.002342,92210.0,92209.0,1.14591547]
[1740995161068,0.001342,92210.0,92209.0,1.13891547]
[1740995161270,0.001342,92210.0,92209.0,1.14591547]
[1740995161477,0.00201,92226.0,92212.0,0.04999983]
[1740995161682,0.00201,92226.0,92217.0,0.299]
[1740995161862,0.00201,92226.0,92219.0,0.01454085]
[1740995162058,0.00201,92226.0,92220.0,0.27357462]
[1740995162304,0.00201,92226.0,92221.0,0.00127538]
[1740995162502,0.00201,92226.0,92222.0,0.01454085]
[1740995162702,0.00201,92226.0,92221.0,0.00127538]
[1740995162703,0.00201,92226.0,92224.0,0.01454085]
[1740995162910,0.00301,92226.0,92225.0,0.01581613]
[1740995163512,0.00401,92226.0,92225.0,0.01581613]
[1740995164150,0.00501,92226.0,92225.0,0.01581613]
[1740995164518,0.00501,92226.0,92225.0,1.13319075]
[1740995164629,0.00401,92226.0,92225.0,1.2614153]
[1740995165040,0.00401,92226.0,92225.0,1.2684153]
[1740995165271,0.00301,92226.0,92225.0,1.2684153]
[1740995165465,0.00201,92241.0,92231.0,0.04999983]
[1740995165684,0.00201,92241.0,92234.0,0.01454085]
[1740995165887,0.00201,92241.0,92235.0,0.00127448]
[1740995166101,0.00201,92241.0,92233.0,0.3]
[1740995166793,0.00301,92241.0,92233.0,0.3]
[1740995166996,0.00201,92241.0,92233.0,0.3]
[1740995167541,0.001,92241.0,92238.0,0.05]
[1740995167864,0.0004,92259.0,92238.0,0.05]
[1740995168219,0.0004,92259.0,92241.0,0.01354085]
[1740995168983,0.0004,92259.0,92241.0,0.01154085]
[1740995169164,0.0004,92259.0,92240.0,0.3]
[1740995169378,0.0004,92259.0,92241.0,0.007]
[1740995169577,0.001341,92249.0,92241.0,0.007]
[1740995170064,0.001341,92249.0,92246.0,0.04999983]
[1740995171011,0.001341,92249.0,92248.0,0.31454085]
[1740995171213,0.000341,92249.0,92248.0,0.31454085]
[1740995172156,0.0007423,92249.0,92248.0,0.32154085]
[1740995173469,0.0007423,92249.0,92248.0,0.32854085]
[1740995174053,0.0007423,92249.0,92248.0,0.32154085]
[1740995174263,0.0007423,92249.0,92248.0,0.32854085]
[1740995174889,0.0007423,92249.0,92248.0,0.31454085]
[1740995175272,0.0007423,92249.0,92248.0,0.32154085]
[1740995175505,0.0007423,92249.0,92248.0,0.31454085]
[1740995175669,0.0007423,92249.0,92248.0,0.32154085]
[1740995175876,0.0007423,92249.0,92248.0,0.32854085]
[1740995176079,0.0007423,92249.0,92248.0,0.32154085]
[1740995176587,0.0007423,92249.0,92248.0,0.32854085]
[1740995176761,0.0007423,92249.0,92248.0,0.32154085]
[1740995176962,0.0007423,92249.0,92248.0,1.13891547]
[1740995177263,0.0007423,92249.0,92248.0,1.14591547]
[1740995177620,0.0007423,92249.0,92248.0,1.13891547]
[1740995178027,0.0007423,92249.0,92248.0,1.14591547]
[1740995178235,0.0007423,92249.0,92248.0,1.30152047]
[1740995178642,0.0007423,92249.0,92248.0,1.30852047]
[1740995178838,3e-07,92249.0,92248.0,1.35152047]
[1740995179176,3e-07,92249.0,92248.0,1.37608918]
[1740995180744,0.0019703,92257.0,92248.0,1.21348418]
[1740995180944,3e-07,92259.0,92258.0,0.462587]
[1740995181177,6.99e-05,92259.0,92258.0,0.73616162]
[1740995182275,6.99e-05,92259.0,92258.0,0.74316162]
[1740995182913,6.99e-05,92259.0,92258.0,0.7607153]
[1740995184294,6.99e-05,92259.0,92258.0,0.4677153]
[1740995185954,6.99e-05,92259.0,92258.0,0.19414068]
[1740995186726,6.99e-05,92259.0,92258.0,0.03155368]
[1740995186857,6.99e-05,92259.0,92258.0,0.19414068]
[1740995187500,6.99e-05,92259.0,92258.0,0.18714068]
[1740995187657,6.99e-05,92259.0,92258.0,0.19414068]
[1740995187858,6.99e-05,92259.0,92258.0,0.18714068]
[1740995188308,6.99e-05,92259.0,92258.0,0.19414068]
[1740995189551,0.0822699,92259.0,92258.0,0.19414068]
[1740995189887,0.1286699,92259.0,92258.0,0.03155368]
[1740995190086,0.1286699,92259.0,92258.0,0.176587]
[1740995190332,0.0464699,92259.0,92258.0,0.1942256]
[1740995191983,6.99e-05,92259.0,92258.0,0.1942256]
[1740995192654,6.99e-05,92259.0,92258.0,0.1872256]
[1740995192904,6.99e-05,92259.0,92258.0,0.4872256]
[1740995193125,9e-07,92259.0,92258.0,0.50176645]
[1740995193274,0.0003415,92259.0,92258.0,0.50176645]
[1740995193476,5e-07,92259.0,92258.0,0.50176645]
[1740995193879,5e-07,92259.0,92258.0,0.50876645]
[1740995195073,5e-07,92259.0,92258.0,0.4942256]
[1740995195278,5e-07,92259.0,92258.0,0.4872256]
[1740995195476,5e-07,92259.0,92258.0,0.1872256]
[1740995195707,5e-07,92259.0,92258.0,0.1942256]
[1740995200820,0.0828005,92259.0,92258.0,0.1942256]
[1740995201557,0.2919855,92259.0,92258.0,0.0316386]
[1740995201869,0.2919855,92259.0,92258.0,0.014]
[1740995202052,0.30285519,92259.0,92258.0,0.007]
[1740995202934,0.92695519,92259.0,92258.0,0.014]
[1740995203135,0.239915,92242.0,92241.0,0.0001703]
[1740995203338,0.24181238,92242.0,92241.0,0.0001703]
[1740995203758,0.07919738,92242.0,92241.0,0.0001703]
[1740995203903,0.0773,92242.0,92241.0,0.0001703]
[1740995204108,0.0773,92242.0,92241.0,0.1627873]
[1740995204604,0.00189729,92255.0,92241.0,0.01784012]
[1740995204750,0.0806,92251.0,92250.0,0.162601]
[1740995205128,0.0806,92251.0,92250.0,0.18025729]
[1740995205486,0.0806,92251.0,92250.0,0.16925728]
[1740995206279,0.0806,92251.0,92250.0,0.02165629]
[1740995206428,0.543199,92251.0,92250.0,0.02065629]
[1740995206634,0.591599,92251.0,92250.0,0.004]
[1740995207264,0.591599,92251.0,92250.0,0.009]
[1740995207700,0.591599,92251.0,92250.0,0.004]
[1740995207918,0.3,92250.0,92241.0,0.0001703]
[1740995208102,0.129,92251.0,92241.0,0.0001703]
[1740995208319,0.291599,92251.0,92250.0,0.002]
[1740995208516,0.291599,92251.0,92241.0,0.0001703]
[1740995208517,0.429,92251.0,92241.0,0.0001703]
[1740995208923,0.13,92251.0,92250.0,0.162601]
[1740995209356,0.132,92251.0,92250.0,0.18022177]